[Event "African Championship (W)"]
[Site "followchess.com"]
[Date "2021.05.24"]
[Round "6"]
[White "Moaataz, Ayah"]
[Black "Marape, Naledi"]
[Result "1/2-1/2"]
[WhiteElo "2028"]
[BlackElo "1717"]
[ECO "A13"]
[WhiteFed "EGY"]
[BlackFed "BOT"]
[FCGameId "-610483088"]
[WhiteFideId "10615873"]
[BlackFideId "11310880"]
[TimeControl "7200+30"]

1. c4 {[%clk 1:30:58]} Nf6 {[%clk 1:30:56]} 2. g3 {[%clk 1:31:23]} e6 
{[%clk 1:31:21]} 3. Bg2 {[%clk 1:31:48]} d5 {[%clk 1:31:45]} 4. Nf3 
{[%clk 1:32:08]} dxc4 {[%clk 1:32:09]} 5. Qa4+ {[%clk 1:31:57]} Bd7 
{[%clk 1:32:32]} 6. Qxc4 {[%clk 1:32:22]} c5 {[%clk 1:32:58]} 7. O-O 
{[%clk 1:31:55]} Nc6 {[%clk 1:33:18]} 8. d3 {[%clk 1:31:57]} Rc8 
{[%clk 1:32:27]} 9. Qc2 {[%clk 1:27:03]} b5 {[%clk 1:29:23]} 10. a4 
{[%clk 1:23:45]} a6 {[%clk 1:27:32]} 11. axb5 {[%clk 1:17:59]} axb5 
{[%clk 1:27:36]} 12. Nc3 {[%clk 1:17:26]} Nd4 {[%clk 1:25:59]} 13. Qd1 
{[%clk 1:17:18]} Qb6 {[%clk 1:19:58]} 14. Ne5 {[%clk 1:16:20]} Be7 
{[%clk 1:19:23]} 15. Bg5 {[%clk 1:09:08]} Bc6 {[%clk 1:15:12]} 16. Nxc6 
{[%clk 1:08:53]} Nxc6 {[%clk 1:15:37]} 17. Qb3 {[%clk 0:58:09]} Nd4 
{[%clk 1:13:09]} 18. Qd1 {[%clk 0:58:24]} h6 {[%clk 1:11:39]} 19. Bd2 
{[%clk 0:58:25]} O-O {[%clk 1:11:51]} 20. Ra2 {[%clk 0:55:59]} Rb8 
{[%clk 1:04:08]} 21. Ne4 {[%clk 0:49:45]} Nxe4 {[%clk 1:01:20]} 22. Bxe4 
{[%clk 0:50:11]} Bf6 {[%clk 0:59:53]} 23. h4 {[%clk 0:44:03]} c4 
{[%clk 0:54:18]} 24. e3 {[%clk 0:38:14]} Nb3 {[%clk 0:53:33]} 25. d4 
{[%clk 0:34:13]} Nxd2 {[%clk 0:53:16]} 26. Qxd2 {[%clk 0:34:39]} Rfc8 
{[%clk 0:52:53]} 27. Rfa1 b4 {[%clk 0:50:20]} 28. Ra6 {[%clk 0:32:50]} Qd8 
{[%clk 0:50:34]} 29. Rc1 {[%clk 0:32:03]} Qd7 {[%clk 0:45:40]} 30. Raa1 
{[%clk 0:26:36]} Qc7 {[%clk 0:38:35]} 31. Qe2 {[%clk 0:25:58]} Be7 
{[%clk 0:35:04]} 32. Ra6 {[%clk 0:24:45]} c3 {[%clk 0:29:29]} 33. bxc3 
{[%clk 0:24:04]} bxc3 {[%clk 0:28:13]} 34. Rc6 {[%clk 0:23:26]} Qa5 
{[%clk 0:28:28]} 35. Qc4 {[%clk 0:18:11]} Rxc6 {[%clk 0:25:11]} 36. Qxc6 
{[%clk 0:18:30]} Bb4 {[%clk 0:24:45]} 37. d5 {[%clk 0:16:33]} exd5 
{[%clk 0:22:33]} 38. Bxd5 {[%clk 0:16:36]} Qd8 {[%clk 0:18:37]} 39. e4 
{[%clk 0:13:15]} Qc8 {[%clk 0:13:03]} 40. Qa4 {[%clk 0:42:13]} Qe8 
{[%clk 0:39:56]} 41. Qa7 {[%clk 0:41:36]} Rc8 {[%clk 0:38:04]} 42. Qb7 
{[%clk 0:38:35]} Be7 {[%clk 0:37:47]} 43. e5 {[%clk 0:37:53]} Qd8 
{[%clk 0:35:10]} 44. Qb3 {[%clk 0:37:30]} Qf8 {[%clk 0:33:08]} 45. Rxc3 
{[%clk 0:36:59]} Rxc3 {[%clk 0:33:21]} 46. Qxc3 {[%clk 0:37:25]} Bd8 
{[%clk 0:33:06]} 47. Qc4 {[%clk 0:36:38]} Be7 {[%clk 0:33:27]} 48. Qf4 
{[%clk 0:34:49]} g6 {[%clk 0:30:41]} 49. Qg4 {[%clk 0:31:18]} Qg7 
{[%clk 0:28:14]} 50. e6 {[%clk 0:26:30]} f6 {[%clk 0:26:43]} 51. h5 
{[%clk 0:25:05]} g5 {[%clk 0:20:22]} 52. Be4 {[%clk 0:24:17]} Qf8 
{[%clk 0:19:50]} 53. Qf5 {[%clk 0:24:31]} Qg7 {[%clk 0:20:16]} 54. Qb5 
{[%clk 0:24:43]} Qf8 {[%clk 0:19:24]} 55. Bg6 {[%clk 0:24:05]} Kh8 
{[%clk 0:17:51]} 56. Kg2 {[%clk 0:23:05]} Qa8+ {[%clk 0:17:01]} 57. Kh2 
{[%clk 0:23:19]} Qc8 {[%clk 0:16:47]} 58. Bf7 {[%clk 0:23:41]} Qf8 
{[%clk 0:17:08]} 59. Kh3 {[%clk 0:23:54]} Qg7 {[%clk 0:15:00]} 60. Qd7 
{[%clk 0:23:43]} Qf8 {[%clk 0:15:24]} 61. Kg4 {[%clk 0:23:41]} Kg7 
{[%clk 0:15:32]} 62. Qd3 {[%clk 0:23:04]} Kh8 {[%clk 0:15:54]} 63. Qg6 
{[%clk 0:23:20]} Qg7 {[%clk 0:16:17]} 64. Kf5 {[%clk 0:23:41]} Qf8 
{[%clk 0:15:51]} 65. Be8 {[%clk 0:23:15]} Qg7 {[%clk 0:15:31]} 66. Bc6 
{[%clk 0:23:07]} Qf8 {[%clk 0:15:23]} 67. Bd7 {[%clk 0:23:23]} Qg7 
{[%clk 0:13:21]} 68. Qe8+ {[%clk 0:23:45]} Bf8 {[%clk 0:09:56]} 69. Bc6 
{[%clk 0:20:58]} Kh7 {[%clk 0:08:33]} 70. Be4 {[%clk 0:20:42]} Kh8 
{[%clk 0:08:22]} 71. e7 {[%clk 0:18:28]} Qxe7 {[%clk 0:08:43]} 72. Qxe7 
{[%clk 0:18:45]} Bxe7 {[%clk 0:09:11]} 73. Kg6 {[%clk 0:18:58]} Bd8 
{[%clk 0:09:21]} 74. g4 {[%clk 0:19:13]} Be7 {[%clk 0:09:25]} 75. Bd5 
{[%clk 0:19:11]} Bd8 {[%clk 0:09:46]} 76. Kxh6 {[%clk 0:19:08]} Bb6 
{[%clk 0:10:06]} 77. Kg6 {[%clk 0:18:46]} Bd4 {[%clk 0:10:31]} 78. Kf5 
{[%clk 0:18:52]} Be5 {[%clk 0:10:45]} 79. f4 {[%clk 0:19:10]} gxf4 
{[%clk 0:11:10]} 80. g5 {[%clk 0:19:20]} Kg7 {[%clk 0:10:47]} 81. h6+ 
{[%clk 0:18:45]} Kh7 {[%clk 0:10:43]} 82. Be4 {[%clk 0:18:02]} fxg5 
{[%clk 0:10:25]} 1/2-1/2

[Event "African Championship (W)"]
[Site "followchess.com"]
[Date "2021.05.24"]
[Round "6"]
[White "Shriyan santosh Priyasha"]
[Black "Badenhorst, Chloe"]
[Result "1/2-1/2"]
[WhiteElo "1285"]
[BlackElo "1316"]
[ECO "A05"]
[WhiteFed "MAW"]
[BlackFed "RSA"]
[FCGameId "-1164551415"]
[WhiteFideId "20505353"]
[BlackFideId "14339463"]
[TimeControl "7200+30"]

1. Nf3 Nf6 2. g3 g6 3. Bg2 Bg7 4. O-O O-O 5. d3 d5 6. Nbd2 Nc6 7. e4 
{[%clk 1:31:20]} dxe4 {[%clk 1:29:41]} 8. dxe4 {[%clk 1:31:39]} Bg4 
{[%clk 1:28:52]} 9. h3 {[%clk 1:31:26]} Bxf3 {[%clk 1:27:02]} 10. Qxf3 
{[%clk 1:29:03]} Nd4 {[%clk 1:24:54]} 11. Qd1 {[%clk 1:27:49]} c6 
{[%clk 1:21:21]} 12. c3 {[%clk 1:26:20]} Ne6 {[%clk 1:21:06]} 13. Qe2 
{[%clk 1:22:42]} Qc7 {[%clk 1:19:10]} 14. Nb3 {[%clk 1:21:57]} a5 
{[%clk 1:13:59]} 15. Nd4 {[%clk 1:20:19]} Nc5 {[%clk 1:08:30]} 16. Bg5 e5 
{[%clk 1:04:18]} 17. Bxf6 {[%clk 1:04:02]} Bxf6 {[%clk 1:03:46]} 18. Nf3 
{[%clk 1:01:16]} Rad8 {[%clk 1:01:34]} 19. h4 {[%clk 0:57:00]} Qd7 
{[%clk 0:56:17]} 20. Qe3 {[%clk 0:52:27]} Qe7 {[%clk 0:50:41]} 21. Rad1 
{[%clk 0:48:19]} Bg7 {[%clk 0:46:51]} 22. Rfe1 {[%clk 0:40:25]} Nd7 
{[%clk 0:41:36]} 23. Rd3 {[%clk 0:36:06]} Nc5 {[%clk 0:40:22]} 24. Rdd1 
{[%clk 0:35:01]} Nd7 {[%clk 0:39:48]} 25. Qa7 {[%clk 0:34:30]} Nc5 
{[%clk 0:28:24]} 26. Rxd8 {[%clk 0:30:28]} Rxd8 {[%clk 0:28:45]} 27. Qxa5 
{[%clk 0:29:46]} Bf6 {[%clk 0:22:02]} 28. b3 {[%clk 0:19:22]} Qf8 
{[%clk 0:16:44]} 29. Qb6 {[%clk 0:15:21]} Ra8 {[%clk 0:14:32]} 30. b4 
{[%clk 0:08:56]} Nd3 {[%clk 0:10:28]} 31. Re3 {[%clk 0:07:55]} Qd8 
{[%clk 0:07:05]} 32. Qxd8+ {[%clk 0:07:08]} Rxd8 {[%clk 0:07:26]} 33. Re2 
{[%clk 0:06:15]} Nc1 {[%clk 0:07:11]} 34. Rc2 {[%clk 0:05:27]} Rd1+ 
{[%clk 0:04:01]} 35. Bf1 {[%clk 0:05:12]} Nd3 {[%clk 0:03:35]} 36. Kg2 
{[%clk 0:04:13]} Ne1+ {[%clk 0:03:20]} 37. Nxe1 {[%clk 0:04:34]} Rxe1 
{[%clk 0:03:43]} 38. Be2 {[%clk 0:04:26]} Bg7 {[%clk 0:02:45]} 39. c4 
{[%clk 0:04:18]} Bh6 {[%clk 0:02:32]} 40. b5 {[%clk 0:33:31]} c5 
{[%clk 0:31:10]} 41. g4 {[%clk 0:29:59]} Bf4 {[%clk 0:29:02]} 42. Bd3 
{[%clk 0:25:42]} Rc1 {[%clk 0:27:44]} 43. Rxc1 {[%clk 0:20:29]} Bxc1 
{[%clk 0:27:39]} 44. Kf3 {[%clk 0:20:07]} Bd2 {[%clk 0:25:41]} 45. Ke2 
{[%clk 0:18:56]} Bb4 {[%clk 0:24:14]} 46. Ke3 {[%clk 0:18:36]} f6 
{[%clk 0:20:59]} 47. f4 {[%clk 0:17:15]} Kf7 {[%clk 0:19:39]} 48. Be2 
{[%clk 0:13:52]} exf4+ {[%clk 0:17:24]} 49. Kxf4 {[%clk 0:13:30]} Bd2+ 
{[%clk 0:16:54]} 50. Kf3 {[%clk 0:12:38]} Ke6 {[%clk 0:16:05]} 51. Bd1 
{[%clk 0:10:42]} g5 {[%clk 0:11:15]} 52. hxg5 {[%clk 0:08:05]} fxg5 
{[%clk 0:10:52]} 53. Ke2 {[%clk 0:06:38]} Bb4 {[%clk 0:10:34]} 54. Ke3 
{[%clk 0:05:55]} Ke5 {[%clk 0:10:21]} 55. Bf3 {[%clk 0:05:20]} b6 
{[%clk 0:10:04]} 56. Bg2 {[%clk 0:04:36]} Bc3 {[%clk 0:09:36]} 1/2-1/2

[Event "African Championship (W)"]
[Site "followchess.com"]
[Date "2021.05.24"]
[Round "6"]
[White "Marochkina, Nadezhda Valerevna"]
[Black "Nakabo, Peninah"]
[Result "1/2-1/2"]
[WhiteElo "1639"]
[BlackElo "1730"]
[ECO "D10"]
[WhiteFed "SEN"]
[BlackFed "UGA"]
[FCGameId "856903604"]
[WhiteFideId "19900490"]
[BlackFideId "10004556"]
[TimeControl "7200+30"]

1. d4 {[%clk 1:30:53]} d5 {[%clk 1:29:56]} 2. c4 {[%clk 1:31:17]} c6 
{[%clk 1:30:21]} 3. e3 {[%clk 1:31:40]} Bf5 {[%clk 1:30:31]} 4. Nf3 
{[%clk 1:31:58]} e6 {[%clk 1:30:45]} 5. Nc3 {[%clk 1:32:16]} Nf6 
{[%clk 1:30:58]} 6. a3 {[%clk 1:32:31]} Be7 {[%clk 1:30:57]} 7. c5 
{[%clk 1:31:21]} O-O {[%clk 1:30:59]} 8. Be2 {[%clk 1:31:36]} Nbd7 
{[%clk 1:28:57]} 9. b4 {[%clk 1:31:41]} Qc7 {[%clk 1:28:45]} 10. O-O 
{[%clk 1:29:50]} e5 {[%clk 1:28:42]} 11. dxe5 {[%clk 1:29:16]} Nxe5 
{[%clk 1:28:42]} 12. Nd4 {[%clk 1:28:52]} Bg6 {[%clk 1:27:34]} 13. Bb2 
{[%clk 1:28:24]} a5 {[%clk 1:23:52]} 14. Na4 {[%clk 1:21:00]} Ned7 
{[%clk 1:22:34]} 15. Bd3 {[%clk 1:14:24]} Bxd3 {[%clk 1:20:17]} 16. Qxd3 
{[%clk 1:14:41]} Ne5 {[%clk 1:19:59]} 17. Qc2 {[%clk 1:12:37]} Nc4 
{[%clk 1:18:29]} 18. Bc3 {[%clk 1:11:32]} Ne4 {[%clk 1:14:30]} 19. Nf5 
{[%clk 1:07:04]} Nxc3 {[%clk 1:09:32]} 20. Nxe7+ {[%clk 1:07:20]} Qxe7 
{[%clk 1:09:52]} 21. Nxc3 {[%clk 1:07:37]} f5 {[%clk 1:00:18]} 22. Ne2 
{[%clk 1:05:00]} Qe5 {[%clk 0:54:54]} 23. Qc3 {[%clk 0:59:31]} Qxc3 
{[%clk 0:53:50]} 24. Nxc3 {[%clk 0:59:54]} axb4 {[%clk 0:54:10]} 25. axb4 
{[%clk 1:00:16]} Ra3 {[%clk 0:54:21]} 26. Rxa3 {[%clk 0:55:38]} Nxa3 
{[%clk 0:53:57]} 27. Ra1 {[%clk 0:55:30]} Nc2 {[%clk 0:53:35]} 28. Ra4 
{[%clk 0:55:39]} g6 {[%clk 0:52:18]} 29. g3 {[%clk 0:53:45]} Re8 
{[%clk 0:50:02]} 30. b5 {[%clk 0:50:51]} Ne1 {[%clk 0:42:42]} 31. Ra7 
{[%clk 0:45:56]} cxb5 {[%clk 0:32:26]} 32. Rxb7 {[%clk 0:44:27]} Rc8 
{[%clk 0:26:38]} 33. Rxb5 {[%clk 0:44:11]} Nd3 {[%clk 0:26:53]} 34. Nxd5 
{[%clk 0:43:01]} Rxc5 {[%clk 0:26:50]} 35. Rxc5 {[%clk 0:42:56]} Nxc5 
{[%clk 0:27:11]} 36. h4 {[%clk 0:43:13]} Kf7 {[%clk 0:27:10]} 37. Kg2 
{[%clk 0:43:22]} Nd7 {[%clk 0:26:44]} 38. Nc3 {[%clk 0:42:46]} Ke6 
{[%clk 0:26:42]} 39. e4 {[%clk 0:42:58]} Ke5 {[%clk 0:26:08]} 40. exf5 
{[%clk 1:13:10]} Kxf5 {[%clk 0:56:21]} 41. Nd5 {[%clk 1:09:38]} Ke4 
{[%clk 0:55:03]} 42. Nf4 {[%clk 1:09:42]} Ne5 {[%clk 0:54:50]} 43. Ne6 
{[%clk 1:09:34]} h5 {[%clk 0:53:53]} 44. Nf8 {[%clk 1:09:01]} Kf5 
{[%clk 0:53:33]} 45. Nh7 {[%clk 1:08:23]} Nf7 {[%clk 0:52:26]} 46. Nf8 
{[%clk 1:04:13]} Ne5 {[%clk 0:52:10]} 47. f4 {[%clk 1:02:12]} Nc4 
{[%clk 0:49:38]} 48. Nd7 {[%clk 1:01:21]} Kg4 {[%clk 0:45:50]} 49. Nf6+ 
{[%clk 0:58:49]} 1/2-1/2

[Event "African Championship (W)"]
[Site "followchess.com"]
[Date "2021.05.23"]
[Round "5"]
[White "Nassr, Lina"]
[Black "Moaataz, Ayah"]
[Result "1-0"]
[WhiteElo "1960"]
[BlackElo "2028"]
[ECO "B10"]
[WhiteFed "ALG"]
[BlackFed "EGY"]
[FCGameId "-549625307"]
[WhiteFideId "7908075"]
[BlackFideId "10615873"]
[TimeControl "7200+30"]

1. e4 {[%clk 1:30:44]} c6 {[%clk 1:30:56]} 2. Nf3 {[%clk 1:31:06]} d5 
{[%clk 1:31:21]} 3. exd5 {[%clk 1:31:24]} cxd5 {[%clk 1:31:47]} 4. Ne5 
{[%clk 1:31:39]} Nc6 {[%clk 1:31:28]} 5. d4 {[%clk 1:31:47]} Nf6 
{[%clk 1:31:02]} 6. c3 {[%clk 1:31:33]} g6 {[%clk 1:28:49]} 7. Bd3 
{[%clk 1:29:01]} Bg7 {[%clk 1:28:58]} 8. Qe2 {[%clk 1:27:55]} O-O 
{[%clk 1:26:16]} 9. O-O {[%clk 1:27:07]} Bf5 {[%clk 1:19:50]} 10. Bxf5 
{[%clk 1:10:49]} gxf5 {[%clk 1:20:16]} 11. Bf4 {[%clk 1:09:53]} e6 
{[%clk 1:18:24]} 12. Nd2 {[%clk 1:07:22]} Rc8 {[%clk 1:11:34]} 13. Rfe1 
{[%clk 1:04:47]} Ne4 {[%clk 1:08:24]} 14. Nxe4 {[%clk 0:55:14]} fxe4 
{[%clk 1:07:36]} 15. Qh5 {[%clk 0:52:55]} f6 {[%clk 0:57:31]} 16. Nxc6 
{[%clk 0:48:07]} Rxc6 {[%clk 0:57:52]} 17. Re3 {[%clk 0:44:58]} Qe8 
{[%clk 0:54:47]} 18. Qg4 {[%clk 0:41:43]} e5 {[%clk 0:51:04]} 19. Rg3 
{[%clk 0:40:00]} Rf7 {[%clk 0:46:26]} 20. Bh6 {[%clk 0:37:20]} f5 
{[%clk 0:36:37]} 21. Qh5 {[%clk 0:28:06]} Qe6 {[%clk 0:36:20]} 22. Bxg7 
{[%clk 0:27:45]} Rxg7 {[%clk 0:36:46]} 23. Rd1 {[%clk 0:25:01]} Rxg3 
{[%clk 0:30:47]} 24. hxg3 {[%clk 0:25:16]} Rb6 {[%clk 0:28:12]} 25. Qg5+ 
{[%clk 0:21:08]} Kf7 {[%clk 0:28:14]} 26. b3 {[%clk 0:18:10]} Rd6 
{[%clk 0:26:05]} 27. dxe5 {[%clk 0:13:35]} Qxe5 {[%clk 0:26:23]} 28. Rd4 
{[%clk 0:12:44]} Re6 {[%clk 0:16:41]} 29. Qe3 {[%clk 0:10:28]} a6 
{[%clk 0:14:34]} 30. Rb4 {[%clk 0:08:04]} Qc7 {[%clk 0:12:13]} 31. Qg5 
{[%clk 0:06:16]} Rf6 {[%clk 0:11:20]} 32. Qd2 {[%clk 0:05:25]} Qc6 
{[%clk 0:05:42]} 33. Rd4 {[%clk 0:05:20]} Kg6 {[%clk 0:04:33]} 34. Rxd5 
{[%clk 0:04:51]} Re6 {[%clk 0:04:50]} 35. c4 {[%clk 0:03:24]} h6 
{[%clk 0:03:19]} 36. Qf4 {[%clk 0:03:07]} Rf6 {[%clk 0:03:13]} 37. g4 
{[%clk 0:03:04]} Qe6 {[%clk 0:02:23]} 38. gxf5+ {[%clk 0:02:54]} Rxf5 
{[%clk 0:02:44]} 39. Qg4+ {[%clk 0:01:42]} Kf6 {[%clk 0:02:39]} 40. Rxf5+ 
{[%clk 0:31:27]} Qxf5 {[%clk 0:33:03]} 41. Qxf5+ {[%clk 0:19:41]} Kxf5 
{[%clk 0:33:30]} 42. Kf1 {[%clk 0:10:04]} Ke5 {[%clk 0:33:35]} 43. Ke2 
{[%clk 0:10:20]} Kd4 {[%clk 0:32:05]} 44. Kd2 {[%clk 0:09:17]} h5 
{[%clk 0:25:50]} 45. g3 {[%clk 0:05:01]} a5 {[%clk 0:25:28]} 46. a4 
{[%clk 0:04:26]} b6 {[%clk 0:25:28]} 47. Kc2 {[%clk 0:03:47]} e3 
{[%clk 0:18:42]} 48. f3 {[%clk 0:02:50]} e2 {[%clk 0:08:09]} 49. Kd2 
{[%clk 0:03:10]} e1=Q+ {[%clk 0:08:15]} 50. Kxe1 {[%clk 0:03:38]} Kd3 
{[%clk 0:04:43]} 51. f4 {[%clk 0:03:03]} Ke4 {[%clk 0:03:45]} 52. Kf2 
{[%clk 0:03:02]} h4 {[%clk 0:03:09]} 53. gxh4 {[%clk 0:03:11]} Kxf4 54. h5 
{[%clk 0:03:23]} Ke4 {[%clk 0:03:04]} 55. h6 {[%clk 0:03:37]} Kd4 
{[%clk 0:03:29]} 56. h7 {[%clk 0:03:57]} Kc3 {[%clk 0:03:54]} 57. h8=Q+ 
{[%clk 0:04:21]} Kxb3 {[%clk 0:04:22]} 58. Qe8 {[%clk 0:04:15]} 1-0

[Event "African Championship (W)"]
[Site "followchess.com"]
[Date "2021.05.23"]
[Round "5"]
[White "Mwango , Lorita"]
[Black "Wafa, Shahenda"]
[Result "1/2-1/2"]
[WhiteElo "1912"]
[BlackElo "2145"]
[ECO "E61"]
[WhiteFed "ZAM"]
[BlackFed "EGY"]
[FCGameId "1210311635"]
[WhiteFideId "8700478"]
[BlackFideId "10609962"]
[TimeControl "7200+30"]

1. d4 {[%clk 1:30:57]} Nf6 {[%clk 1:30:49]} 2. c4 {[%clk 1:31:06]} g6 
{[%clk 1:31:11]} 3. Nc3 {[%clk 1:31:33]} Bg7 {[%clk 1:31:33]} 4. Nf3 
{[%clk 1:31:50]} O-O {[%clk 1:31:52]} 5. e3 {[%clk 1:32:02]} d6 {[%clk 1:32:04]} 
6. Be2 {[%clk 1:32:21]} Nbd7 {[%clk 1:32:02]} 7. O-O {[%clk 1:32:26]} e5 
{[%clk 1:32:15]} 8. dxe5 {[%clk 1:32:27]} dxe5 {[%clk 1:32:36]} 9. Qc2 
{[%clk 1:32:34]} c6 {[%clk 1:30:45]} 10. b3 {[%clk 1:32:27]} Qe7 
{[%clk 1:26:59]} 11. Bb2 {[%clk 1:32:24]} e4 {[%clk 1:25:49]} 12. Nd2 
{[%clk 1:30:03]} Re8 {[%clk 1:25:20]} 13. Rad1 {[%clk 1:30:07]} h5 
{[%clk 1:23:11]} 14. Qc1 {[%clk 1:27:21]} Nf8 {[%clk 1:20:29]} 15. Qa1 
{[%clk 1:27:13]} Bf5 {[%clk 1:18:08]} 16. Ncxe4 {[%clk 1:22:24]} Bxe4 
{[%clk 1:11:47]} 17. Nxe4 {[%clk 1:22:27]} Qxe4 {[%clk 1:10:45]} 18. Bxf6 
{[%clk 1:22:46]} Bxf6 {[%clk 1:10:55]} 19. Qxf6 {[%clk 1:23:13]} Qc2 
{[%clk 1:10:57]} 20. Bf3 {[%clk 1:21:59]} Qxa2 {[%clk 1:08:59]} 21. Rd3 
{[%clk 1:20:44]} Qa5 {[%clk 1:06:28]} 22. Rfd1 {[%clk 1:20:29]} Nh7 
{[%clk 0:52:48]} 23. Qc3 {[%clk 1:01:22]} Qxc3 {[%clk 0:48:09]} 24. Rxc3 
{[%clk 1:01:46]} Nf8 {[%clk 0:47:39]} 25. Rcd3 {[%clk 1:01:58]} Ne6 
{[%clk 0:44:23]} 26. Rd7 {[%clk 0:57:21]} Nc5 {[%clk 0:44:21]} 27. Rc7 
{[%clk 0:57:41]} Rac8 {[%clk 0:44:03]} 28. Rxc8 {[%clk 0:57:55]} Rxc8 
{[%clk 0:44:28]} 29. b4 {[%clk 0:58:18]} Ne6 {[%clk 0:44:36]} 30. Ra1 
{[%clk 0:58:08]} a6 {[%clk 0:43:53]} 31. b5 {[%clk 0:56:16]} axb5 
{[%clk 0:35:47]} 32. cxb5 {[%clk 0:56:29]} Ng5 {[%clk 0:32:56]} 33. Be2 
{[%clk 0:55:45]} cxb5 {[%clk 0:33:01]} 34. Bxb5 {[%clk 0:55:36]} Ne4 
{[%clk 0:32:46]} 35. Bd3 {[%clk 0:55:30]} Nd6 {[%clk 0:32:42]} 36. Kf1 
{[%clk 0:55:20]} Kf8 {[%clk 0:31:54]} 37. Ke2 {[%clk 0:55:33]} Ke7 
{[%clk 0:32:15]} 38. Rb1 {[%clk 0:55:24]} Rc5 {[%clk 0:30:57]} 39. e4 
{[%clk 0:55:35]} g5 {[%clk 0:27:46]} 40. Ke3 {[%clk 1:25:44]} Kd7 
{[%clk 0:56:55]} 41. g3 {[%clk 1:24:30]} g4 {[%clk 0:46:37]} 42. f4 
{[%clk 1:22:59]} gxf3 {[%clk 0:46:16]} 43. Kxf3 {[%clk 1:23:19]} Kc6 
{[%clk 0:41:00]} 44. Kf4 {[%clk 1:23:23]} f6 {[%clk 0:39:32]} 45. Rb2 
{[%clk 1:22:23]} b5 {[%clk 0:38:26]} 46. Rc2 {[%clk 1:20:18]} Nc4 
{[%clk 0:36:58]} 47. Be2 {[%clk 1:16:07]} Kd6 {[%clk 0:35:19]} 48. h4 
{[%clk 1:16:09]} Kc6 {[%clk 0:30:49]} 49. g4 {[%clk 1:12:12]} hxg4 
{[%clk 0:30:38]} 50. Bxg4 {[%clk 1:12:18]} b4 {[%clk 0:30:17]} 51. Be6 
{[%clk 1:11:30]} Kb5 {[%clk 0:30:00]} 52. Bd7+ {[%clk 1:09:28]} Ka5 
{[%clk 0:26:27]} 53. Ra2+ {[%clk 1:08:44]} Kb6 {[%clk 0:26:44]} 54. Ba4 
{[%clk 1:09:02]} Ne5 {[%clk 0:18:58]} 55. Kf5 {[%clk 1:08:20]} Nf3+ 
{[%clk 0:16:28]} 56. Kxf6 {[%clk 1:08:34]} Rh5 {[%clk 0:15:19]} 57. Rf2 
{[%clk 0:59:03]} Rxh4 {[%clk 0:14:36]} 58. Rxf3 {[%clk 0:58:34]} Rxe4 
{[%clk 0:14:57]} 59. Bb3 {[%clk 0:58:33]} Kc5 {[%clk 0:13:30]} 60. Rd3 
{[%clk 0:57:54]} Rd4 {[%clk 0:13:20]} 61. Re3 {[%clk 0:57:14]} Rh4 
{[%clk 0:12:51]} 62. Ke5 {[%clk 0:57:31]} Rh1 {[%clk 0:10:56]} 63. Rd3 
{[%clk 0:55:58]} Rh5+ {[%clk 0:11:06]} 64. Kf4 {[%clk 0:56:19]} Rh4+ 
{[%clk 0:11:16]} 65. Kg3 {[%clk 0:56:45]} Rd4 {[%clk 0:11:35]} 66. Re3 
{[%clk 0:55:45]} Rd2 {[%clk 0:11:33]} 67. Kf4 {[%clk 0:45:50]} 1/2-1/2

[Event "African Championship (W)"]
[Site "followchess.com"]
[Date "2021.05.23"]
[Round "5"]
[White "Ogbiyoyo, Perpetual Eloho"]
[Black "Banda Natalie Katlo"]
[Result "1-0"]
[WhiteElo "1880"]
[BlackElo "1560"]
[ECO "B12"]
[WhiteFed "NGR"]
[BlackFed "BOT"]
[FCGameId "456249700"]
[WhiteFideId "8509050"]
[BlackFideId "11315075"]
[TimeControl "7200+30"]

1. e4 {[%clk 1:30:28]} c6 {[%clk 1:30:56]} 2. d4 {[%clk 1:30:46]} d5 
{[%clk 1:31:21]} 3. f3 {[%clk 1:31:08]} e6 {[%clk 1:30:56]} 4. Nc3 
{[%clk 1:31:01]} Bb4 {[%clk 1:31:12]} 5. Bd2 {[%clk 1:31:08]} Bxc3 
{[%clk 1:31:28]} 6. Bxc3 {[%clk 1:28:31]} dxe4 {[%clk 1:30:06]} 7. Qd2 
{[%clk 1:24:54]} exf3 {[%clk 1:29:08]} 8. Nxf3 {[%clk 1:25:10]} Qd5 
{[%clk 1:25:21]} 9. Bd3 {[%clk 1:24:37]} Nf6 {[%clk 1:24:34]} 10. Ne5 
{[%clk 1:16:36]} h6 {[%clk 1:17:33]} 11. O-O {[%clk 1:16:43]} b6 
{[%clk 1:12:20]} 12. Bc4 {[%clk 1:13:57]} Qd8 {[%clk 1:11:42]} 13. Qf4 
{[%clk 1:13:58]} O-O {[%clk 1:07:13]} 14. Rad1 {[%clk 1:13:14]} Bb7 
{[%clk 1:02:53]} 15. Bb4 {[%clk 1:08:56]} Re8 {[%clk 1:01:29]} 16. g4 
{[%clk 1:08:02]} a5 {[%clk 1:00:10]} 17. Be1 {[%clk 1:06:24]} b5 
{[%clk 0:59:50]} 18. Be2 {[%clk 1:06:30]} Rf8 {[%clk 0:57:48]} 19. Bh4 
{[%clk 1:04:22]} Na6 {[%clk 0:52:04]} 20. Qc1 {[%clk 1:00:37]} Nb4 21. Rxf6 
{[%clk 0:59:26]} gxf6 {[%clk 0:42:39]} 22. Qxh6 {[%clk 0:58:51]} Nd5 
{[%clk 0:40:56]} 23. Bd3 {[%clk 0:58:36]} 1-0